[Event "Serbian League 2024"]
[Site "Bajina Basta"]
[Date "2024.10.03"]
[Round "7.18"]
[White "Ivanovic, Marko"]
[Black "Arsovic, Goran"]
[Result "0-1"]
[ECO "E90"]
[WhiteElo "2240"]
[BlackElo "2356"]
[Annotator "TA"]
[PlyCount "82"]
[EventDate "2024.09.26"]
[EventType "team-tourn"]
[EventCountry "SRB"]
[SourceTitle "playchess.com"]
[Source "ChessBase"]
[SourceQuality "1"]
[TimeControl "40/5400+30:1800+30"]

{[%evp 17,82,52,60,68,68,47,42,-59,-10,-17,-29,-39,-11,-59,-43,-39,0,0,0,-13,0,-53,-49,-33,0,0,0,0,0,-76,-75,-139,-139,-176,-7,-106,-80,-93,0,-119,-41,-176,-187,-170,-66,-317,-314,-339,-317,-318,-286,-281,-290,-358,-360,-372,-341,-512,-456,-621,-608,-590,-491,-1339,-1270,-1311,-1307]} 1. d4 {[%emt 0:04:49]} Nf6 {[%emt 0:00:50]} 2. Nf3 {[%emt 0:00:18]} g6 {[%emt 0:00:24]} 3. c4 {[%emt 0:00:04]} Bg7 {[%emt 0:00:21]} 4. Nc3 {[%emt 0:00:04]} d6 {[%emt 0:00:16]} 5. e4 {[%emt 0:00:16]} O-O {[%emt 0:04:22]} 6. h3 {[%emt 0:01:12]} e5 {[%emt 0:02:54]} 7. d5 {[%emt 0:00:07]} Na6 {[%emt 0:01:07]} 8. Bg5 {[%emt 0:01:45]} Qe8 {[%emt 0:00:25]} 9. g4 {[%emt 0:02:17]} Kh8 {[%emt 0:04:14]} 10. Be3 {[%emt 0:01:27]} Ng8 {[%emt 0:05:26]} 11. g5 {[%emt 0:00:42]} f5 {[%emt 0:04:52]} 12. Qc2 {[%emt 0:05:19]} (12. Be2 $14) 12... Nb4 {[%emt 0:04:59]} (12... Ne7 $15) 13. Qb3 $11 {[%emt 0:02:03]} a5 {[%emt 0:06:05]} 14. Be2 {[%emt 0:06:39]} Bd7 {[%emt 0:02:41]} 15. O-O-O {[%emt 0:10:54]} (15. Qd1 $11 {should be considered.}) 15... fxe4 $15 {[%emt 0:09:27]} 16. Nd2 {[%emt 0:00:08]} Nd3+ {[%emt 0:03:21]} 17. Bxd3 {[%emt 0:00:35]} exd3 {[%emt 0:00:04]} 18. Nde4 {[%emt 0:04:53]} b6 {[%emt 0:09:12]} 19. Rdg1 {[%emt 0:05:37]} (19. Nb5 $11 a4 (19... Bxb5 20. Qxb5 Qf7 21. Qb3 $11) 20. Qxd3 Bxb5 21. cxb5) 19... Ne7 {[%emt 0:09:50]} 20. Qd1 {[%emt 0:00:36]} Qf7 {[%emt 0:06:31][%cal Ob6b5]} 21. Qxd3 {[%emt 0:06:41]} Nf5 {[%emt 0:02:37]} 22. h4 {[%emt 0:01:54]} Nd4 {[%emt 0:00:45]} 23. Rg3 {[%emt 0:22:48]} (23. Qd1 $11) 23... Bf5 $1 $17 {[%emt 0:02:11]} 24. Kb1 {[%emt 0:02:26]} ({White should try} 24. Rd1) 24... a4 {[%emt 0:01:17]} 25. a3 {[%emt 0:00:31]} Rab8 $2 {[%emt 0:07:10]} (25... c6 $1 $19 {[%cal Ob6b5] Strongly threatening ...b5!} 26. dxc6 b5) 26. Ka1 {[%emt 0:03:00]} (26. Nb5 $1 $11) 26... Nb3+ {[%emt 0:04:47]} 27. Ka2 {[%emt 0:00:08][%cal Of2f3]} Nd4 {[%emt 0:00:12]} (27... b5 $1 $17 {[%cal Rb5b4] ...b4 is the strong threat.} 28. cxb5 Nd4) 28. f3 {[%emt 0:03:10] [#]} (28. Ka1 $11) 28... Nxf3 {[%emt 0:00:35]} 29. h5 {[%emt 0:05:44] [#]} ({White should play} 29. Rxf3 $15 Bxe4 30. Rxf7 Bxd3 31. Rxc7) 29... gxh5 $1 $19 {[%emt 0:00:05]} 30. Qd1 {[%emt 0:00:39] [#]} Bg4 {[%emt 0:01:56]} (30... Nd4 $1 $19 {aiming for ...Bg6.} 31. Rxh5 Bg6) 31. Qxa4 $2 {[%emt 0:00:23][%mdl 8192] [#]} (31. Nf2 $15) 31... Nd4 $1 {[%emt 0:00:26]} 32. Rxg4 {[%emt 0:05:21]} hxg4 {[%emt 0:00:14]} 33. Qd1 {[%emt 0:00:03]} Nf3 {[%emt 0:00:48]} 34. Qe2 {[%emt 0:01:04]} Qf5 {[%emt 0:05:37]} 35. Ng3 {[%emt 0:00:29]} Qg6 {[%emt 0:00:04][%cal Of8f4]} 36. Nce4 {[%emt 0:00:44]} Rf4 {[%emt 0:01:05]} 37. Bc1 {[%emt 0:02:42]} (37. Nf2 $142) 37... Nd4 {[%emt 0:00:15] Black is clearly winning.} 38. Qg2 {[%emt 0:00:07]} Rf3 {[%emt 0:00:39]} 39. Rh4 {[%emt 0:01:32]} Nb3 {[%emt 0:01:08]} 40. Rxg4 {[%emt 0:00:45]} (40. Bd2 $142 b5 41. Bc3 Nc1+ (41... bxc4 $2 42. Rxg4 Nc1+ 43. Ka1 $19) 42. Kb1) 40... Nxc1+ {[%emt 0:00:04]} 41. Kb1 {[%emt 0:30:04]} Rf4 {[%emt 0:30:40] Weighted Error Value: White=0.69/Black=0.30.  Loses game:     	White=1     	---        Missed win:     	---       	Black=1      Mistake:       	White=9     	Black=4      Inaccurate:     	White=1     	Black=2      OK:         	White=10    	Black=10     Best:        	---       	Black=1      Strong:       	---       	Black=3} 0-1

[Event "Serbian League 2024"]
[Site "Bajina Basta"]
[Date "2024.10.03"]
[Round "7.19"]
[White "Visakh N R"]
[Black "Adhiban, B.."]
[Result "1/2-1/2"]
[ECO "E90"]
[WhiteElo "2504"]
[BlackElo "2537"]
[Annotator "RC"]
[PlyCount "55"]
[EventDate "2024.09.26"]
[EventType "team-tourn"]
[EventCountry "SRB"]
[SourceTitle "playchess.com"]
[Source "ChessBase"]
[SourceQuality "1"]
[TimeControl "40/5400+30:1800+30"]

1. d4 {[%emt 0:00:09]} Nf6 {[%emt 0:00:09]} 2. c4 {[%emt 0:00:09]} g6 {[%emt 0:00:04]} 3. Nc3 {[%emt 0:00:07]} Bg7 {[%emt 0:00:05]} 4. e4 {[%emt 0:00:08]} d6 {[%emt 0:00:05]} 5. Nf3 {[%emt 0:00:35]} O-O {[%emt 0:00:07]} 6. Bd3 {[%emt 0:00:19]} Bg4 {[%emt 0:00:07]} 7. Be2 {[%emt 0:00:14]} Bxf3 {[%emt 0:00:16]} 8. Bxf3 {[%emt 0:00:12]} Nfd7 {[%emt 0:00:08]} 9. Be3 {[%emt 0:01:11]} Nc6 {[%emt 0:00:07]} 10. d5 {[%emt 0:01:44]} Na5 {[%emt 0:00:06]} 11. Be2 {[%emt 0:03:19]} Nb6 {[%emt 0:00:11]} 12. Bd4 {[%emt 0:01:00]} Bxd4 {[%emt 0:00:17]} 13. Qxd4 {[%emt 0:00:07]} c5 {[%emt 0:00:04]} 14. dxc6 {[%emt 0:00:14]} e5 {[%emt 0:00:05]} 15. Qd2 {[%emt 0:03:24]} bxc6 {[%emt 0:02:51]} 16. b3 {[%emt 0:01:52]} Qe7 {[%emt 0:25:23]} 17. O-O {[%emt 0:06:59]} Rad8 {[%emt 0:11:44]} 18. Rac1 {[%emt 0:11:13]} Nb7 {[%emt 0:12:11]} 19. b4 {[%emt 0:02:18]} d5 {[%emt 0:00:26]} 20. cxd5 {[%emt 0:03:55]} Qxb4 {[%emt 0:00:17]} 21. Rfd1 {[%emt 0:06:05]} cxd5 {[%emt 0:02:09]} 22. Nxd5 {[%emt 0:01:20]} Nxd5 {[%emt 0:00:34]} 23. exd5 {[%emt 0:00:04]} Qe7 {[%emt 0:02:02]} 24. Rc6 {[%emt 0:09:55]} Nd6 {[%emt 0:00:21]} 25. Qb4 {[%emt 0:00:19]} e4 {[%emt 0:02:48]} 26. Qc5 {[%emt 0:00:26]} Rfe8 {[%emt 0:02:04]} 27. g3 {[%emt 0:04:28]} e3 {[%emt 0:00:52]} 28. Qxe3 {[%emt 0:06:29]} 1/2-1/2

[Event "Serbian League 2024"]
[Site "Bajina Basta"]
[Date "2024.10.03"]
[Round "7.20"]
[White "Can, Emre"]
[Black "Vignesh N R"]
[Result "1/2-1/2"]
[ECO "D16"]
[WhiteElo "2547"]
[BlackElo "2511"]
[Annotator "TA"]
[PlyCount "49"]
[EventDate "2024.09.26"]
[EventType "team-tourn"]
[EventCountry "SRB"]
[SourceTitle "playchess.com"]
[Source "ChessBase"]
[SourceQuality "1"]
[TimeControl "40/5400+30:1800+30"]

{[%evp 12,49,11,11,37,16,9,20,6,0,25,18,7,9,54,39,57,59,80,82,139,118,138,84,130,83,84,82,98,0,20,9,11,12,11,0,4,3,0,0]} 1. d4 {[%emt 0:03:34]} d5 {[%emt 0:01:50]} 2. c4 {[%emt 0:00:25]} c6 {[%emt 0:00:06]} 3. Nf3 {[%emt 0:00:07]} Nf6 {[%emt 0:00:06]} 4. Nc3 {[%emt 0:00:22]} dxc4 {[%emt 0:01:10]} 5. a4 {[%emt 0:00:17]} e6 {[%emt 0:00:10]} 6. e3 {[%emt 0:00:40]} c5 {[%emt 0:00:07]} 7. Bxc4 {[%emt 0:00:08]} cxd4 {[%emt 0:00:10]} 8. Nxd4 {[%emt 0:00:27]} Bb4 {[%emt 0:01:56]} 9. O-O {[%emt 0:00:30]} O-O {[%emt 0:00:35]} 10. Qe2 {[%emt 0:01:35]} Qe7 {[%emt 0:01:11]} 11. e4 {[%emt 0:06:43][%cal Be3e4,Be4e5][%mdl 32]} Rd8 {[%emt 0:13:08]} 12. Nf3 {[%emt 0:06:52]} h6 {[%emt 0:08:22]} 13. e5 {[%emt 0:00:39]} Nd5 {[%emt 0:00:14]} 14. Qe4 {[%emt 0:02:21][%cal Rc4d5]} Bxc3 {[%emt 0:23:21]} (14... Nxc3 15. bxc3 Bc5 16. Bd3 $18) 15. bxc3 {[%emt 0:00:19]} f5 {[%emt 0:03:08] Repels Qg4} ({Black should play} 15... Nc6) 16. exf6 $16 {[%emt 0:01:45]} Qxf6 {[%emt 0:02:05]} 17. Bb2 {[%emt 0:10:44] A strong pair of Bishops.} (17. Bd3 $142 {And now Qh7+ would win.} Qf5 18. Qh4) 17... Nc6 {[%emt 0:00:34] [#]} (17... Na6 $142) 18. Rad1 {[%emt 0:02:08]} (18. Rfe1 $142 $1) 18... Bd7 {[%emt 0:01:56][%cal Bc8d7,Bd7e8,Be8h5][%mdl 32]} 19. Rfe1 {[%emt 0:12:46][%cal Oc4d3]} Be8 {[%emt 0:00:30]} 20. Nh4 {[%emt 0:14:45]} (20. Qxe6+ Qxe6 21. Rxe6 Bf7 $14) (20. Nd4 $16 Nc7 21. Nxe6 (21. Bxe6+ Nxe6 22. Qxe6+ Qxe6 $11) 21... Nxe6 22. Qxe6+ (22. Bxe6+ Bf7 $16) 22... Qxe6 23. Bxe6+ Bf7 24. Bd7) 20... Bh5 {[%emt 0:08:42] The position is equal.} 21. Rd2 {[%emt 0:04:32]} (21. Qxe6+ $2 {perishes.} Qxe6 22. Rxe6 Bxd1 $19) 21... Nf4 {[%emt 0:05:24]} 22. Rxd8+ {[%emt 0:05:35]} (22. Bxe6+ $2 {too greedy.} Qxe6 23. Qxe6+ Nxe6 $19) 22... Rxd8 {[%emt 0:00:03]} 23. Nf5 {[%emt 0:00:47][%cal Bh4f5,Bf5d4,Bd4c6][%mdl 32]} (23. Bxe6+ $2 {is the wrong capture.} Nxe6 (23... Qxe6 24. Qxe6+ Nxe6 25. h3 $19) 24. c4 Qxb2 $19) 23... Bf7 {[%emt 0:03:33]} 24. Nd4 {[%emt 0:04:39]} e5 {[%emt 0:02:26]} (24... Bg6 $5 25. Qe3 $8 Nxd4 26. cxd4 Kh7 $16) 25. Nxc6 {[%emt 0:03:41] Weighted Error Value: White=0.15 (very precise) /Black=0.14 (very precise) .  Mistake:       	White=3     	Black=2      Inaccurate:     	---       	Black=1      OK:         	White=10    	Black=2      Best:        	White=1     	Black=2} 1/2-1/2

[Event "Serbian League 2024"]
[Site "Bajina Basta"]
[Date "2024.10.03"]
[Round "7.21"]
[White "Milanovic, Danilo"]
[Black "Bogosavljevic, Boban"]
[Result "0-1"]
[ECO "E51"]
[WhiteElo "2442"]
[BlackElo "2486"]
[Annotator "RC"]
[PlyCount "74"]
[EventDate "2024.09.26"]
[EventType "team-tourn"]
[EventCountry "SRB"]
[SourceTitle "playchess.com"]
[Source "ChessBase"]
[SourceQuality "1"]
[TimeControl "40/5400+30:1800+30"]

1. d4 {[%emt 0:05:46]} Nf6 {[%emt 0:00:08]} 2. c4 {[%emt 0:00:09]} e6 {[%emt 0:00:08]} 3. Nc3 {[%emt 0:00:04]} Bb4 {[%emt 0:00:10]} 4. e3 {[%emt 0:00:10]} d5 {[%emt 0:00:16]} 5. Bd2 {[%emt 0:00:22]} O-O {[%emt 0:00:17]} 6. Nf3 {[%emt 0:00:13]} Nbd7 {[%emt 0:05:43]} 7. a3 {[%emt 0:03:27]} Bxc3 {[%emt 0:09:32]} 8. Bxc3 {[%emt 0:01:00]} c5 {[%emt 0:00:52]} 9. dxc5 {[%emt 0:20:30]} Nxc5 {[%emt 0:02:18]} 10. Bd4 {[%emt 0:25:55]} b6 {[%emt 0:01:37]} 11. Be2 {[%emt 0:02:57]} Bd7 {[%emt 0:24:11]} 12. b3 {[%emt 0:08:51]} a5 {[%emt 0:01:53]} 13. O-O {[%emt 0:06:55]} a4 {[%emt 0:03:05]} 14. b4 {[%emt 0:00:49]} Nb3 {[%emt 0:00:08]} 15. Ra2 {[%emt 0:00:08]} Rc8 {[%emt 0:01:54]} 16. Rc2 {[%emt 0:01:01]} Nxd4 {[%emt 0:27:33]} 17. Qxd4 {[%emt 0:01:32]} dxc4 {[%emt 0:02:32]} 18. Rxc4 {[%emt 0:00:59]} Rxc4 {[%emt 0:01:07]} 19. Qxc4 {[%emt 0:01:48]} Qb8 {[%emt 0:01:13]} 20. Qd4 {[%emt 0:10:20]} Rc8 {[%emt 0:00:57]} 21. Ne5 {[%emt 0:03:26]} Be8 {[%emt 0:00:10]} 22. h3 {[%emt 0:02:08]} Rd8 {[%emt 0:05:23]} 23. Qb2 {[%emt 0:00:29]} Ne4 {[%emt 0:02:01]} 24. Bd3 {[%emt 0:01:19]} Nd6 {[%emt 0:02:35]} 25. Rc1 {[%emt 0:00:19]} Rc8 {[%emt 0:07:17]} 26. Rc3 {[%emt 0:01:56]} h6 {[%emt 0:00:00]} 27. Qc1 {[%emt 0:00:54]} Rxc3 {[%emt 0:00:13]} 28. Qxc3 {[%emt 0:00:01]} Bb5 {[%emt 0:00:17]} 29. Bc2 {[%emt 0:00:55]} Qc8 {[%emt 0:00:21]} 30. Qxc8+ {[%emt 0:00:34]} Nxc8 {[%emt 0:00:01]} 31. Nf3 {[%emt 0:00:30]} Nd6 {[%emt 0:00:14]} 32. Nd4 {[%emt 0:00:12]} Bd7 {[%emt 0:00:01]} 33. f4 {[%emt 0:00:41]} Nc4 {[%emt 0:00:15]} 34. b5 {[%emt 0:00:37]} Nxe3 {[%emt 0:01:40]} 35. Bxa4 {[%emt 0:00:02]} Nc4 {[%emt 0:00:58]} 36. Bc2 {[%emt 0:00:17]} Nxa3 {[%emt 0:00:16]} 37. Bd3 {[%emt 0:00:04]} Kf8 {[%emt 0:00:41]} 0-1

[Event "Serbian League 2024"]
[Site "Bajina Basta"]
[Date "2024.10.03"]
[Round "7.22"]
[White "Zajic, Milan"]
[Black "Spasic, Petar"]
[Result "1/2-1/2"]
[ECO "B51"]
[WhiteElo "2404"]
[BlackElo "2304"]
[Annotator "TA"]
[PlyCount "51"]
[EventDate "2024.09.26"]
[EventType "team-tourn"]
[EventCountry "SRB"]
[SourceTitle "playchess.com"]
[Source "ChessBase"]
[SourceQuality "1"]
[TimeControl "40/5400+30:1800+30"]

{[%evp 9,51,13,17,11,32,29,37,12,10,0,0,0,13,12,16,9,12,0,18,13,21,19,28,12,31,0,24,0,-2,-24,-26,-34,-19,-24,-30,-33,-25,-29,-29,-26,-28,-35,-29,-26]} 1. e4 {[%emt 0:00:01]} c5 {[%emt 0:00:20]} 2. Nf3 {[%emt 0:00:02]} d6 {[%emt 0:00:08]} 3. Bb5+ {[%emt 0:00:05]} Nd7 {[%emt 0:00:09]} 4. O-O {[%emt 0:01:22]} a6 {[%emt 0:00:38]} 5. Bd3 {[%emt 0:00:02]} Ngf6 {[%emt 0:01:29]} 6. Re1 {[%emt 0:00:26]} g6 {[%emt 0:04:04]} 7. c3 {[%emt 0:00:12]} Bh6 {[%emt 0:01:06]} 8. Bc2 {[%emt 0:01:31] White is slightly better.} Ne5 {[%emt 0:01:49]} 9. Nxe5 {[%emt 0:13:51]} dxe5 {[%emt 0:03:15]} 10. d3 {[%emt 0:02:03]} Bxc1 {[%emt 0:00:51]} 11. Qxc1 {[%emt 0:00:03]} O-O {[%emt 0:00:39]} 12. Qe3 {[%emt 0:04:14]} Qc7 {[%emt 0:01:05]} 13. Nd2 {[%emt 0:04:01]} Kg7 {[%emt 0:01:15]} 14. h3 {[%emt 0:10:40]} Rd8 {[%emt 0:05:38]} 15. Nf3 {[%emt 0:05:29]} Nd7 {[%emt 0:01:46]} 16. Rac1 {[%emt 0:01:59]} Nf8 {[%emt 0:03:05]} 17. Bb3 {[%emt 0:15:18]} Qd6 {[%emt 0:02:44]} 18. Red1 {[%emt 0:03:50]} Be6 {[%emt 0:02:02]} 19. d4 {[%emt 0:02:42]} Bxb3 {[%emt 0:02:44]} 20. axb3 {[%emt 0:00:02]} cxd4 {[%emt 0:02:14]} 21. cxd4 {[%emt 0:00:09]} exd4 {[%emt 0:00:54]} 22. Nxd4 {[%emt 0:01:19][%cal Bf3d4,Bd4f5,Bf5e3][%mdl 32] [#] Threatens to win with Nf5+!} Kg8 {[%emt 0:06:52]} 23. e5 {[%emt 0:03:17]} Qb6 {[%emt 0:17:21]} 24. Nf5 {[%emt 0:04:30]} Rxd1+ {[%emt 0:09:01]} 25. Rxd1 {[%emt 0:00:07]} Qxe3 {[%emt 0:04:09]} 26. Nxe3 {[%emt 0:01:05] Weighted Error Value: White=0.10 (very precise) /Black=0.08 (flawless) .  Inaccurate:     	White=2     	---        OK:         	White=5     	Black=5      Best:        	---       	Black=2} 1/2-1/2

[Event "Serbian League 2024"]
[Site "Bajina Basta"]
[Date "2024.10.03"]
[Round "7.23"]
[White "Stankovic, Boris"]
[Black "Roganovic, Milos"]
[Result "1/2-1/2"]
[ECO "B33"]
[WhiteElo "2290"]
[BlackElo "2434"]
[Annotator "TA"]
[PlyCount "55"]
[EventDate "2024.09.26"]
[EventType "team-tourn"]
[EventCountry "SRB"]
[SourceTitle "playchess.com"]
[Source "ChessBase"]
[SourceQuality "1"]
[TimeControl "40/5400+30:1800+30"]

{[%evp 22,55,34,36,49,36,62,33,58,45,66,47,62,27,25,4,37,0,18,7,27,0,0,-4,-14,-8,0,0,0,-6,-8,-8,-8,-94,-8,-8]} 1. e4 {[%emt 0:00:01]} c5 {[%emt 0:03:52]} 2. Nf3 {[%emt 0:00:04][%cal Bg1f3,Bf3d4,Bd4b5][%mdl 32]} Nc6 {[%emt 0:00:04]} 3. d4 {[%emt 0:00:14]} cxd4 {[%emt 0:00:11]} 4. Nxd4 {[%emt 0:00:05]} Nf6 {[%emt 0:00:18]} 5. Nc3 {[%emt 0:00:07]} e5 {[%emt 0:00:08]} 6. Ndb5 {[%emt 0:00:07]} d6 {[%emt 0:00:10]} 7. Bg5 {[%emt 0:00:23]} a6 {[%emt 0:01:58]} 8. Na3 {[%emt 0:00:06]} b5 {[%emt 0:00:19]} 9. Bxf6 {[%emt 0:01:18]} gxf6 {[%emt 0:00:15]} 10. Nd5 {[%emt 0:00:06]} Bg7 {[%emt 0:00:32]} 11. g3 {[%emt 0:01:22]} f5 {[%emt 0:05:54]} 12. exf5 {[%emt 0:00:15]} Bxf5 {[%emt 0:00:48]} 13. Bg2 {[%emt 0:00:22] Prevents Be4.} Bd7 {[%emt 0:05:19]} 14. O-O {[%emt 0:02:12] White is more active.} O-O {[%emt 0:02:46] White is slightly better.} 15. c3 {[%emt 0:03:16]} Rb8 {[%emt 0:10:08]} 16. Nc2 {[%emt 0:01:39] Excellent horsemanship.} a5 {[%emt 0:02:04]} 17. a3 {[%emt 0:05:52]} f5 {[%emt 0:02:39]} 18. f4 {[%emt 0:00:32]} (18. Qd2 {looks sharper.} f4 19. gxf4 Qh4 20. fxe5 Nxe5 21. f4) 18... Kh8 {[%emt 0:00:30]} 19. Kh1 {[%emt 0:02:39]} Ne7 {[%emt 0:02:50]} 20. Nce3 {[%emt 0:12:44]} Ng6 {[%emt 0:04:52]} 21. Qh5 {[%emt 0:04:33]} exf4 {[%emt 0:01:05]} 22. Nxf4 {[%emt 0:02:21]} Nxf4 {[%emt 0:00:36]} 23. gxf4 {[%emt 0:02:57]} Qe8 {[%emt 0:00:45]} 24. Qxe8 {[%emt 0:10:45]} Rfxe8 {[%emt 0:01:25]} 25. Rae1 {[%emt 0:01:53]} b4 {[%emt 0:06:19]} 26. axb4 {[%emt 0:47:37]} axb4 {[%emt 0:00:07]} 27. cxb4 {[%emt 0:00:00] [#]} (27. Nd5 $11 {keeps the balance.}) 27... Rxb4 {[%emt 0:18:12]} ({Black should play} 27... Bb5 $1 $17 {[%cal Rb5f1]} 28. Rf3 Bd4 (28... Bxb2 29. Rb1 $11)) 28. Nxf5 $1 {[%emt 0:00:00] Weighted Error Value: White=0.19 (very precise) /Black=0.16 (very precise) .  Mistake:       	White=1     	Black=1      Inaccurate:     	White=4     	Black=2      OK:         	White=3     	Black=4      Strong:       	White=1     	---} 1/2-1/2

[Event "Serbian League 2024"]
[Site "Bajina Basta"]
[Date "2024.10.03"]
[Round "7.24"]
[White "Toth, Aleksandar"]
[Black "Petrovic, Aleksa"]
[Result "1-0"]
[ECO "A07"]
[WhiteElo "2333"]
[BlackElo "2250"]
[Annotator "TA"]
[PlyCount "103"]
[EventDate "2024.09.26"]
[EventType "team-tourn"]
[EventCountry "SRB"]
[SourceTitle "playchess.com"]
[Source "ChessBase"]
[SourceQuality "1"]
[TimeControl "40/5400+30:1800+30"]

{[%evp 10,103,0,14,12,5,4,4,18,0,0,0,0,0,0,0,0,-45,-14,-24,-26,-22,0,-35,-25,-31,-29,-29,-32,-47,-9,-14,-14,-10,0,0,0,0,0,0,0,0,0,0,0,0,0,0,0,0,115,105,231,215,218,210,418,411,474,457,454,449,552,550,519,503,693,693,625,395,731,736,830,734,737,741,828,828,795,797,877,864,918,932,29981,881,938,931,1154,1096,1156,1108,29981,29982,29982,29971]} 1. Nf3 {[%emt 0:02:09]} d5 {[%emt 0:00:40]} 2. g3 {[%emt 0:00:34]} c6 {[%emt 0:00:43]} 3. Bg2 {[%emt 0:00:48]} Bf5 {[%emt 0:00:10]} 4. O-O {[%emt 0:00:26]} e6 {[%emt 0:00:04]} 5. d3 {[%emt 0:00:28]} Nf6 {[%emt 0:00:20]} 6. Nh4 {[%emt 0:02:30]} Bg4 {[%emt 0:00:45]} 7. h3 {[%emt 0:02:12]} Bh5 {[%emt 0:00:13]} 8. Qe1 {[%emt 0:02:58]} Be7 {[%emt 0:03:29] The position is equal.} 9. e4 {[%emt 0:03:16]} Nfd7 {[%emt 0:02:02]} 10. f4 {[%emt 0:01:25]} Bxh4 {[%emt 0:12:00]} 11. gxh4 {[%emt 0:00:05]} O-O {[%emt 0:00:13][%cal Bh8f8,Bf8f6,Bf6h6,Bh6h4][%mdl 32]} 12. Qg3 {[%emt 0:24:18]} f5 {[%emt 0:11:32]} 13. exd5 {[%emt 0:14:28]} exd5 {[%emt 0:01:24]} 14. Nd2 {[%emt 0:05:52][%cal Bb1d2,Bd2f3,Bf3e5][%mdl 32]} Na6 {[%emt 0:18:34][%cal Bb8a6,Ba6c5,Bc5e6,Be6f8,Bf8g6,Bg6f4][%mdl 32]} 15. Nf3 {[%emt 0:05:30]} Rf6 {[%emt 0:13:18]} 16. Ne5 {[%emt 0:12:17] Dodges Rg6} Nac5 {[%emt 0:09:27]} 17. Qf2 {[%emt 0:00:27]} Ne6 {[%emt 0:00:58]} 18. Nxd7 {[%emt 0:00:49]} Qxd7 {[%emt 0:00:02]} 19. Bd2 {[%emt 0:00:14]} Bf7 {[%emt 0:24:06]} 20. Rae1 {[%emt 0:00:35][%cal Ba1e1,Be1e7,Be7b7][%mdl 32]} Rh6 {[%emt 0:00:00]} 21. Kh2 {[%emt 0:07:56]} Nf8 {[%emt 0:00:00]} 22. Bf3 {[%emt 0:04:14]} Qd8 {[%emt 0:00:00]} 23. Rg1 {[%emt 0:01:21]} Qxh4 {[%emt 0:00:00]} 24. Qxh4 {[%emt 0:03:06]} Rxh4 {[%emt 0:00:00]} 25. Re7 {[%emt 0:00:45]} Ng6 {[%emt 0:00:00]} 26. Rxb7 {[%emt 0:01:37] [#] Threatens to win with Kg3.} Nxf4 {[%emt 0:01:23][%csl Gf4][%cal Rh4h3]} 27. Kg3 {[%emt 0:01:37][%csl LRf4,LRh4]} g5 {[%emt 0:00:25]} (27... Rxh3+ $2 {too greedy.} 28. Kxf4 Re8 29. Bd1 $18 (29. Rxa7 h6 $18)) (27... Nxh3 $2 28. Rh1 g5 29. Bxg5 (29. Rxh3 Rxh3+ 30. Kxh3 g4+ 31. Bxg4 fxg4+ 32. Kxg4 c5 $14) 29... Nxg5 30. Rxh4 $18) 28. Bxf4 {[%emt 0:00:36]} Rxf4 {[%emt 0:00:02]} 29. Re1 {[%emt 0:00:19]} Bg6 {[%emt 0:01:41]} (29... h5 $11 {keeps the balance.}) 30. Re6 $36 {[%emt 0:00:29][%mdl 2048] White is on the roll. White has more active pieces.} Rc8 {[%emt 0:01:23] Loses the game.} (30... a5 $16 {is a better defense.}) 31. Rxa7 $18 {[%emt 0:00:58]} Rb4 {[%emt 0:00:32]} 32. b3 {[%emt 0:00:34][%cal Oe6c6]} Kf8 $2 {[%emt 0:00:30]} (32... Rb5 33. a4 f4+ 34. Kf2 (34. Kg4 Rc5 $18) 34... Rc5) 33. a4 {[%emt 0:00:23][%cal Ba2a4,Ba4a5][%mdl 32]} Re8 {[%emt 0:00:25]} 34. Rf6+ {[%emt 0:00:28]} Kg8 {[%emt 0:00:02]} 35. Rxc6 {[%emt 0:00:08]} Rf4 {[%emt 0:00:42]} 36. Bxd5+ {[%emt 0:00:42]} Kh8 {[%emt 0:00:04]} 37. Re6 {[%emt 0:00:33] [#] Rxe8+ would now be deadly.} Rf8 {[%emt 0:01:06]} 38. a5 {[%emt 0:01:02]} Rf1 {[%emt 0:00:32]} 39. Bf3 {[%emt 0:01:03]} g4 $2 {[%emt 0:00:38]} (39... Rc8 40. Kg2 Ra1) 40. hxg4 {[%emt 0:00:39]} Rc1 {[%emt 0:00:31]} 41. gxf5 {[%emt 0:03:22]} Bxf5 {[%emt 0:02:12]} 42. Re2 {[%emt 0:01:52]} Rf1 {[%emt 0:03:51]} 43. Bg2 {[%emt 0:05:29]} Rg8+ {[%emt 0:00:34]} 44. Kh2 {[%emt 0:00:06]} Ra1 {[%emt 0:00:18]} 45. b4 {[%emt 0:00:44]} Ra4 {[%emt 0:02:10]} 46. Rb7 {[%emt 0:01:44]} Ra2 {[%emt 0:01:41]} 47. Be4 {[%emt 0:04:42]} (47. Bd5 $142 Bxd3 48. Bxg8 (48. Bxa2 Ba6 $18) 48... Ba6 49. Bxa2 Bxb7 50. Re8+ Kg7 51. Re7+ Kh6 52. Rxb7) 47... Bxe4 {[%emt 0:01:22]} 48. dxe4 {[%emt 0:00:04][%cal Bd3e4,Be4e5,Be5e6][%mdl 32]} Ra3 {[%emt 0:00:44]} 49. Rg2 {[%emt 0:01:12]} Rc8 {[%emt 0:00:14]} 50. e5 {[%emt 0:00:48]} h5 {[%emt 0:02:45][%cal Bh7h5,Bh5h4][%mdl 32]} 51. e6 {[%emt 0:00:50]} h4 {[%emt 0:00:06]} 52. Rb5 {[%emt 0:00:22] Weighted Error Value: White=0.13 (very precise) /Black=0.36.  Mistake:       	---       	Black=3      Inaccurate:     	White=2     	Black=3      OK:         	White=20    	Black=10     Best:        	White=1     	Black=5} 1-0